Cogmind - Beta 9.3 @@@ ROGUE MODE // 2019.12.21 @ 03:19:44 // Winter2019/RPGLIKE Player: badjay Result: Destroyed by H-66 Slayer with Gauss Rifle Performance ------------- Evolutions (4) 2000 Regions Visited (8) 1600 Robots Destroyed (1) 5 Value Destroyed (25) 25 Prototype IDs (12) 240 Alien Tech Used (0) 0 Bonus (1325) 1325 TOTAL SCORE: 5195 Bonus ------- Pacifist 1325 Cogmind --------- Core Integrity 0/600 Matter 183/300 Energy 201/210 System Corruption 0% Temperature Cool (112) Movement Flying (30) Location -6/Factory Parts ------- > --- POWER (2) -------- Light Nuclear Core Micro Nuclear Core > --- PROPULSION (3) --- Improved VTOL Module Improved VTOL Module Nuclear Pulse Thruster > --- UTILITY (5) ------ Advanced Signal Interpreter Advanced Terrain Scanner Advanced Terrain Scan Processor Advanced Hacking Suite System Shield > --- WEAPON (1) ------- Chainsword > --- INVENTORY (1) ---- Improved Cloaking Device Peak State ------------ > --- POWER ------------ Light Nuclear Core Cold Fusion Reactor > --- PROPULSION ------- Improved VTOL Module Improved VTOL Module Nuclear Pulse Thruster > --- UTILITY ---------- Advanced Signal Interpreter Advanced Terrain Scanner Improved Cloaking Device Advanced Hacking Suite System Shield > --- WEAPON ----------- Chainsword > --- INVENTORY -------- Nuclear Pulse Thruster [Rating: 48] Favorites ----------- Power Light Nuclear Core Power Core Light Nuclear Core Reactor Cold Fusion Reactor Propulsion Improved VTOL Module Flight Unit Improved VTOL Module Utility Advanced Terrain Scanner Device Advanced Terrain Scanner Processor Advanced Signal Interpreter Hackware System Shield Weapon Chainsword Slashing Weapon Chainsword Build | -11 -10 -9 -9 -8 -7 -7 -7 -6 ------- Run | Scr Mat Mat Min Mat Fac Was Fac Fac Slots Evolved 7 | . . 1 . . 2 3 . 1 Power 1 | . . . . . . 1 . . Propulsion 2 | . . . . . 1 1 . . Utility 4 | . . 1 . . 1 1 . 1 Weapon . | . . . . . . . . . Parts Attached 23 | . 1 2 . 5 2 1 7 5 Power 6 | . . . . 3 . . 1 2 Engine . | . . . . . . . . . Core 5 | . . . . 3 . . 1 1 Reactor 1 | . . . . . . . . 1 Propulsion 4 | . . . . 1 1 . 1 1 Treads . | . . . . . . . . . Leg . | . . . . . . . . . Wheel . | . . . . . . . . . Hover . | . . . . . . . . . Flight 4 | . . . . 1 1 . 1 1 Utility 12 | . 1 2 . 1 1 1 4 2 Device 4 | . . . . 1 . 1 1 1 Storage . | . . . . . . . . . Processor 5 | . 1 2 . . 1 . . 1 Hackware 3 | . . . . . . . 3 . Protection . | . . . . . . . . . Artifact . | . . . . . . . . . Weapon 1 | . . . . . . . 1 . Energy Gun . | . . . . . . . . . Energy Cannon . | . . . . . . . . . Ballistic Gun . | . . . . . . . . . Ballistic Cannon . | . . . . . . . . . Launcher . | . . . . . . . . . Special Weapon . | . . . . . . . . . Impact Weapon . | . . . . . . . . . Slashing Weapon 1 | . . . . . . . 1 . Piercing Weapon . | . . . . . . . . . Special Melee Weapon . | . . . . . . . . . Unidentified Prototypes 2 | . . . . 1 . . . 1 Parts Lost . | . . . . . . . . . Power . | . . . . . . . . . Propulsion . | . . . . . . . . . Utility . | . . . . . . . . . Weapon . | . . . . . . . . . Highest Loss Streak . | . . . . . . . . . Average Slot Usage (%) 83 | . . 35 40 65 83 85 91 100 Core 14 | . . . . 12 14 14 17 18 Flight 23 | . . . . 12 28 28 28 27 Device 13 | . . . . 10 14 14 15 17 Processor 14 | . . 35 40 30 26 28 10 9 Hackware 11 | . . . . . . . 13 18 Slashing Weapon 5 | . . . . . . . 5 9 Naked Turns 65 | . 65 . . . . . . . Heaviest Build 16 | . . . . 6 6 7 16 16 Greatest Support 20 | 3 3 3 3 6 12 12 19 20 Greatest Overweight (x) . | . . . . . . . . . Average Overweight (x) . | . . . . . . . . . Largest Inventory Capacity 1 | . . 1 1 1 1 1 1 1 Average Capacity . | . . . 1 1 1 1 1 1 Most Carried 1 | . . . . 1 1 1 1 1 Average Carried . | . . . . . . 1 . . Final Capacity 1 | . . 1 1 1 1 1 1 1 Final Carried 1 | . . . . 1 1 1 1 1 Class Distribution -------------------- 82% | Hacker-Sprinter 17% | Hacker-Mutant Dominant Class ---------------- Hacker-Mutant | -10/Materials Hacker-Mutant | -9/Materials Hacker-Mutant | -9/Mines Hacker-Mutant | -8/Materials Hacker-Sprinter | -7/Factory Hacker-Sprinter | -7/Waste Hacker-Sprinter | -7/Factory Hacker-Sprinter | -6/Factory Resources | -11 -10 -9 -9 -8 -7 -7 -7 -6 ----------- Run | Scr Mat Mat Min Mat Fac Was Fac Fac Matter Collected 300 | 200 . . . . . . 71 29 Remotely . | . . . . . . . . . Salvage Created 29 | . . . . . . . . 29 Parts . | . . . . . . . . . Haulers Intercepted . | . . . . . . . . . Recyclers Shooed . | . . . . . . . . . Parts Field Recycled . | . . . . . . . . . Retrieved Matter . | . . . . . . . . . Parts Self-Destructed . | . . . . . . . . . Prevented . | . . . . . . . . . Kills | -11 -10 -9 -9 -8 -7 -7 -7 -6 ------- Run | Scr Mat Mat Min Mat Fac Was Fac Fac Combat Hostiles Destroyed . | . . . . . . . . . Classes Destroyed 1 | . . . . . . . . 1 Watcher 1 | . . . . . . . . 1 Best Kill Streak 1 | . . . . . . . . 1 Combat Bots Only . | . . . . . . . . . Max Kills in Single Turn 1 | . . . . . . . . 1 Gunslinging . | . . . . . . . . . Exploded . | . . . . . . . . . Melee . | . . . . . . . . . Uniques/NPCs Destroyed . | . . . . . . . . . Combat | -11 -10 -9 -9 -8 -7 -7 -7 -6 -------- Run | Scr Mat Mat Min Mat Fac Was Fac Fac Damage Taken 641 | . 53 210 48 105 13 . 125 87 Core 604 | . 53 209 47 99 9 . 115 72 Absorbed by Shields . | . . . . . . . . . Redirected to Core 115 | . . 4 . 22 9 . 30 50 Core Remaining (%) 56 | 100 91 . 48 32 . . 11 . Volleys Fired . | . . . . . . . . . Largest . | . . . . . . . . . Hottest . | . . . . . . . . . Shots Fired . | . . . . . . . . . Gun . | . . . . . . . . . Cannon . | . . . . . . . . . Launcher . | . . . . . . . . . Special . | . . . . . . . . . Kinetic . | . . . . . . . . . Thermal . | . . . . . . . . . Explosive . | . . . . . . . . . Electromagnetic . | . . . . . . . . . Robot Hit Streak . | . . . . . . . . . Robot Miss Streak . | . . . . . . . . . Penetration Max . | . . . . . . . . . Secondary Targets . | . . . . . . . . . Shots Hit Robots 3 | . . . . . . . . 3 Core Hits 3 | . . 1 1 . . . . 1 Critical Hits . | . . . . . . . . . Critical Kills . | . . . . . . . . . Critical Parts Destroyed . | . . . . . . . . . Melee Attacks 18 | . . . . . . . 4 14 Impact . | . . . . . . . . . Slashing 18 | . . . . . . . 4 14 Piercing . | . . . . . . . . . Sneak Attacks 1 | . . . . . . . . 1 Combat Hostiles . | . . . . . . . . . Follow-up Attacks . | . . . . . . . . . Damage Inflicted 208 | . . 18 2 . . . . 188 Guns . | . . . . . . . . . Cannons . | . . . . . . . . . Explosions . | . . . . . . . . . Melee 188 | . . . . . . . . 188 Ramming 20 | . . 18 2 . . . . . Kinetic . | . . . . . . . . . Thermal . | . . . . . . . . . Explosive . | . . . . . . . . . Electromagnetic . | . . . . . . . . . Impact . | . . . . . . . . . Slashing 188 | . . . . . . . . 188 Piercing . | . . . . . . . . . Highest Corruption 2 | . . . 2 2 . . . . Average Corruption 2 | . . . 2 2 . . . . Corruption Purged . | . . . . . . . . . Overload Shots . | . . . . . . . . . Overflow Damage 110 | . . . . . . . . 110 Projectiles . | . . . . . . . . . Explosions . | . . . . . . . . . Melee 110 | . . . . . . . . 110 Knockbacks . | . . . . . . . . . Impact . | . . . . . . . . . Kinetic . | . . . . . . . . . Secondary . | . . . . . . . . . Self-Inflicted Damage 9 | . . 8 1 . . . . . Shots . | . . . . . . . . . Rammed 5 | . . 4 1 . . . . . Targets Rammed 5 | . . 4 1 . . . . . Kicked . | . . . . . . . . . Crushed . | . . . . . . . . . Highest Temperature 258 | . . . . . . . 144 258 Average Temperature 77 | . . . . . . . 51 101 Received Heat Transfer 207 | . 12 87 . 45 . . 39 24 Effects 2 | . . . . . . . . 2 Energy Bleed 2 | . . . . . . . . 2 Siege Activations . | . . . . . . . . . Robots Corrupted . | . . . . . . . . . Combat Hostiles . | . . . . . . . . . Parts Fried . | . . . . . . . . . Impact Corruptions . | . . . . . . . . . Robots Melted . | . . . . . . . . . Combat Hostiles . | . . . . . . . . . Parts Melted . | . . . . . . . . . Heat Transferred . | . . . . . . . . . Parts Sabotaged . | . . . . . . . . . Parts Stolen . | . . . . . . . . . Parts Stripped . | . . . . . . . . . Power Chain Reactions . | . . . . . . . . . Missiles Intercepted . | . . . . . . . . . Alert | -11 -10 -9 -9 -8 -7 -7 -7 -6 ------- Run | Scr Mat Mat Min Mat Fac Was Fac Fac Peak Influence 156 | . 33 78 30 75 156 54 144 151 Average Influence 79 | . 25 47 30 47 89 54 102 79 Maximum Alert Level . | . . . . . . . . . Low Security (%) 100 | 100 100 100 100 100 100 100 100 100 Level 1 . | . . . . . . . . . Level 2 . | . . . . . . . . . Level 3 . | . . . . . . . . . Level 4 . | . . . . . . . . . Level 5 . | . . . . . . . . . High Security . | . . . . . . . . . Max Security . | . . . . . . . . . Squads Dispatched 6 | . 2 2 . . 1 . 1 . Investigation 3 | . 2 . . . 1 . . . Extermination . | . . . . . . . . . Reinforcement 3 | . . 2 . . . . 1 . Assault . | . . . . . . . . . Garrison . | . . . . . . . . . Intercept . | . . . . . . . . . Construction Impeded . | . . . . . . . . . Haulers Reinforced . | . . . . . . . . . Stealth | -11 -10 -9 -9 -8 -7 -7 -7 -6 --------- Run | Scr Mat Mat Min Mat Fac Was Fac Fac Distress Signals 1 | . . . . . 1 . . . Communications Jammed . | . . . . . . . . . Distress Signals . | . . . . . . . . . Times Spotted 42 | . 7 7 4 4 5 . 10 5 Peak Tracking Total 6 | . 5 6 4 5 4 . 3 1 Tactical Retreats 6 | . 1 . . 1 . . 3 1 Traps | -11 -10 -9 -9 -8 -7 -7 -7 -6 ------- Run | Scr Mat Mat Min Mat Fac Was Fac Fac Traps Triggered 4 | . . . . 1 1 . 2 . Indirectly . | . . . . . . . . . Trap Hack Attempts . | . . . . . . . . . Triggered . | . . . . . . . . . Disarmed . | . . . . . . . . . Reprogrammed . | . . . . . . . . . Reused . | . . . . . . . . . Traps Extracted . | . . . . . . . . . Installed . | . . . . . . . . . Triggered . | . . . . . . . . . Machines | -11 -10 -9 -9 -8 -7 -7 -7 -6 ---------- Run | Scr Mat Mat Min Mat Fac Was Fac Fac Machines Disabled . | . . . . . . . . . Max in Single Turn . | . . . . . . . . . Machines Sabotaged . | . . . . . . . . . Garrisons Compromised . | . . . . . . . . . Overloaded Fab Kills . | . . . . . . . . . Fab Network Shutdowns . | . . . . . . . . . Hacking | -11 -10 -9 -9 -8 -7 -7 -7 -6 --------- Run | Scr Mat Mat Min Mat Fac Was Fac Fac Machines Accessed 29 | . 3 2 . 2 4 . 11 7 Terminals 22 | . 3 2 . 1 4 . 6 6 Fabricators 2 | . . . . . . . 1 1 Repair Stations 2 | . . . . . . . 2 . Recycling Units . | . . . . . . . . . Scanalyzers 2 | . . . . 1 . . 1 . Garrison Access 1 | . . . . . . . 1 . Total Hacks 128 | . 11 9 . 8 13 . 60 27 Successful 102 | . 7 7 . 7 10 . 51 20 Failed 26 | . 4 2 . 1 3 . 9 7 Catastrophic 2 | . 1 . . . . . 1 . Database Lockouts . | . . . . . . . . . Manual 67 | . 9 2 . 2 8 . 32 14 Terminals 104 | . 11 9 . 4 13 . 43 24 Fabricators 5 | . . . . . . . 2 3 Repair Stations 4 | . . . . . . . 4 . Recycling Units . | . . . . . . . . . Scanalyzers 12 | . . . . 4 . . 8 . Garrison Access 3 | . . . . . . . 3 . Terminal Hacks 56 | . 3 6 . 1 6 . 29 11 Part Schematic 1 | . . . . . . . 1 . Prototype ID Bank 5 | . . 1 . . 1 . 2 1 Level Access Points 4 | . . 1 . . . . 2 1 Branch Access Points 2 | . . . . . . . 1 1 Emergency Access Points 5 | . . 2 . . 1 . 1 1 Terminal Index 6 | . 2 . . . 1 . 2 1 Repair Station Index 1 | . . . . . . . 1 . Alert Level 1 | . . . . . . . 1 . Locate Traps 3 | . 1 . . . . . . 2 Dispatch Records 1 | . . . . . . . 1 . Maintenance Status 1 | . . . . . . . 1 . Security Status 1 | . . . . . . . 1 . Surveillance Status 1 | . . . . . . . 1 . Patrol Status 1 | . . . . . . . 1 . Transport Status 1 | . . . . . . . 1 . Investigation Status 1 | . . . . . . . 1 . Extermination Status 1 | . . . . . . . 1 . Reinforcement Status 2 | . . . . . . . 2 . Assault Status 1 | . . . . . . . 1 . Garrison Status 1 | . . . . . . . 1 . Intercept Status 1 | . . . . . . . 1 . Recall Reinforcements 1 | . . . . . . . 1 . Registered Components 3 | . . 1 . 1 . . . 1 Registered Prototypes 1 | . . . . . . . . 1 Zone Layout 10 | . . 1 . . 3 . 4 2 Fabricator Hacks 5 | . . . . . . . 2 3 Load Schematic 2 | . . . . . . . 1 1 Build 3 | . . . . . . . 1 2 Repair Station Hacks 4 | . . . . . . . 4 . Scan Component 2 | . . . . . . . 2 . Repair 2 | . . . . . . . 2 . Recycling Unit Hacks . | . . . . . . . . . Scanalyzer 11 | . . . . 4 . . 7 . Insert Component 5 | . . . . 2 . . 3 . Analyze 6 | . . . . 2 . . 4 . Garrison Access Hacks 1 | . . . . . . . 1 . Coupler Status 1 | . . . . . . . 1 . Unauthorized Hacks 56 | . 9 3 . 4 9 . 18 13 Terminals 22 | . 4 1 . 2 4 . 5 6 Track 8 | . 2 . . 1 2 . 1 2 Assimilate 3 | . . . . . . . 1 2 Botnet 8 | . 1 1 . 1 2 . 2 1 Operators 3 | . 1 . . . . . 1 1 Fabricators . | . . . . . . . . . Repair Stations . | . . . . . . . . . Recycling Units . | . . . . . . . . . Scanalyzers 1 | . . . . . . . 1 . Researchers 1 | . . . . . . . 1 . Garrison Access 2 | . . . . . . . 2 . Broadcast 1 | . . . . . . . 1 . Reprogram 1 | . . . . . . . 1 . Data Cores Recovered . | . . . . . . . . . Used . | . . . . . . . . . Hacking Detections 25 | . 3 2 . 1 4 . 8 7 Full Trace Events 3 | . 2 . . . 1 . . . Feedback Events . | . . . . . . . . . Feedback Blocked . | . . . . . . . . . Robot Schematics Acquired . | . . . . . . . . . Robots Built 2 | . . . . . . . . 2 Matter 252 | . . . . . . . . 252 Time 134 | . . . . . . . . 134 Total Robot Build Rating 8 | . . . . . . . . 8 Part Schematics Acquired 5 | . . . . 2 . . 3 . Parts Built 3 | . . . . . . . 1 2 Matter 380 | . . . . . . . 212 168 Time 137 | . . . . . . . 53 84 Total Part Build Rating 14 | . . . . . . . 6 8 Parts Repaired 2 | . . . . . . . 2 . Time 105 | . . . . . . . 105 . Parts Recycled . | . . . . . . . . . Recycled Matter . | . . . . . . . . . Retrieved Matter . | . . . . . . . . . Retrieved Components . | . . . . . . . . . Parts Scanalyzed 4 | . . . . 2 . . 2 . Part Schematics Acquired 4 | . . . . 2 . . 2 . Parts Damaged 1 | . . . . . . . 1 . Bothacking | -11 -10 -9 -9 -8 -7 -7 -7 -6 ------------ Run | Scr Mat Mat Min Mat Fac Was Fac Fac Used RIF Installer . | . . . . . . . . . Robots Hacked . | . . . . . . . . . Non-combat . | . . . . . . . . . Combat . | . . . . . . . . . Robot Hacks Applied . | . . . . . . . . . Relay Couplers Released . | . . . . . . . . . Robots Rewired . | . . . . . . . . . Allies Hacked . | . . . . . . . . . Hacks Repelled . | . . . . . . . . . Allies | -11 -10 -9 -9 -8 -7 -7 -7 -6 -------- Run | Scr Mat Mat Min Mat Fac Was Fac Fac Total Allies 6 | . . . 1 . . . 1 4 Largest Group 5 | . . . 1 . . . 1 5 Highest-Rated Group 138 | . . . 31 . . . 26 138 Highest-Rated Ally 38 | . . . 31 . . . 26 38 Total Orders . | . . . . . . . . . Ally Attacks . | . . . . . . . . . Total Damage . | . . . . . . . . . Kills . | . . . . . . . . . Allies Corrupted . | . . . . . . . . . Allies Melted . | . . . . . . . . . Intel | -11 -10 -9 -9 -8 -7 -7 -7 -6 ------- Run | Scr Mat Mat Min Mat Fac Was Fac Fac Robot Analysis Total . | . . . . . . . . . Derelict Logs Recovered . | . . . . . . . . . Drone Launches . | . . . . . . . . . Drone Recoveries . | . . . . . . . . . Exploration | -11 -10 -9 -9 -8 -7 -7 -7 -6 ------------- Run | Scr Mat Mat Min Mat Fac Was Fac Fac Turns Passed 1379 | 16 71 74 16 74 120 41 463 504 Spaces Moved 2688 | 32 138 132 29 161 362 121 1013 700 Core 377 | 32 138 132 29 46 . . . . Treads . | . . . . . . . . . Legs . | . . . . . . . . . Wheels . | . . . . . . . . . Hover . | . . . . . . . . . Flight 2311 | . . . . 115 362 121 1013 700 Fastest Speed 30 | 50 50 50 50 35 32 32 30 30 Average Speed 33 | 50 50 50 50 39 32 32 30 30 Slowest Speed 50 | 50 50 50 50 50 35 32 32 30 Overloaded Moves . | . . . . . . . . . Propulsion Burnouts . | . . . . . . . . . Robots Hopped 3 | . . . . 1 . 2 . . Cave-ins Triggered . | . . . . . . . . . Exploration Rate (%) 26 | 3 48 21 7 22 10 79 28 24 Regions Visited 8 Branch Regions 1 Pre-discovered Areas . | . . . . . . . . . Known Exits Taken 5 | . 1 1 1 1 . . 1 . Unknown Exits Taken 1 | 1 . . . . . . . . Scrap Searched . | . . . . . . . . . Spaces Dug 15 | . . . . . . . 4 11 Terrain Destroyed 15 | . . . . . . . 4 11 Melee 15 | . . . . . . . 4 11 Projectile . | . . . . . . . . . AOE . | . . . . . . . . . Actions | -11 -10 -9 -9 -8 -7 -7 -7 -6 --------- Run | Scr Mat Mat Min Mat Fac Was Fac Fac Total 3123 | 31 138 138 29 170 365 120 1158 974 Wait 356 | . . . . . . . 108 248 Move 2676 | 31 137 131 28 158 362 117 1012 700 Hop 2 | . . . . 1 . 1 . . Pick Up 7 | . . . . 2 1 . 3 1 Fast Attach 20 | . 1 2 . 4 1 1 7 4 Attach 3 | . . . . 1 1 . . 1 Detach 5 | . . . . 1 . . 2 2 Swap . | . . . . . . . . . Drop 13 | . . 1 . 3 . 1 4 4 Fire . | . . . . . . . . . Melee 18 | . . . . . . . 4 14 Ram 5 | . . 4 1 . . . . . Kick . | . . . . . . . . . Crush . | . . . . . . . . . Escape Stasis 18 | . . . . . . . 18 . Rewire . | . . . . . . . . . Trap . | . . . . . . . . . Miscellaneous . | . . . . . . . . . Route ------- -11/Scrapyard -10/Materials -9/Materials (discovered 4 exits: Mat x3 / *Min) -9/Mines -8/Materials -7/Factory -7/Waste -7/Factory (discovered 6 exits: *Fac x4 / Low x2) -6/Factory (discovered 6 exits: *Fac x4 / Low x2) History --------- Turn | Location | Event 4 | -11/Scrapyard | Discovered new exit (range 15) 17 | -11/Scrapyard | Entered Materials 81 | -10/Materials | Discovered new exit (range 10) 87 | -10/Materials | Identified exit to Materials 88 | -10/Materials | Entered another Materials area 90 | -9/Materials | Reached level 2 99 | -9/Materials | Upgraded with Utility slot (x1) 133 | -9/Materials | Identified exit to Materials 152 | -9/Materials | Discovered new exit (range 16) 161 | -9/Materials | Identified exit to Mines 162 | -9/Materials | Entered Mines 165 | -9/Mines | Received a Mining Laser from a helpful Derelict 175 | -9/Mines | Discovered exit to Materials (range 5) 178 | -9/Mines | Core integrity fell below 50% 178 | -9/Mines | Entered Materials 179 | -8/Materials | Core integrity fell below 50% 180 | -8/Materials | Reached level 3 237 | -8/Materials | Discovered new exit (range 15) 252 | -8/Materials | Identified exit to Factory 252 | -8/Materials | Entered Factory 253 | -7/Factory | Core integrity fell below 50% 254 | -7/Factory | Reached level 4 254 | -7/Factory | Upgraded with Propulsion slot (x1) 254 | -7/Factory | Upgraded with Utility slot (x1) 372 | -7/Factory | Sucked down chute 372 | -7/Factory | Entered Waste 372 | -7/Waste | The area was eerily silent 374 | -7/Waste | Reached level 5 388 | -7/Waste | Discovered new exit (range 16) 413 | -7/Waste | Upgraded with Power slot (x1) 413 | -7/Waste | Upgraded with Propulsion slot (x1) 413 | -7/Waste | Upgraded with Utility slot (x1) 413 | -7/Waste | Identified exit to Factory 413 | -7/Waste | Entered Factory 488 | -7/Factory | Core integrity fell below 20% 491 | -7/Factory | Identified exit to Factory 503 | -7/Factory | Repaired Imp. Cloaking Device 561 | -7/Factory | Build established: Hacker-Sprinter 681 | -7/Factory | Identified exit to Lower Caves 746 | -7/Factory | Fabricated Adv. Hacking Suite (x1) 816 | -7/Factory | Repaired Broken Imp. Cloaking Device 876 | -7/Factory | Entered another Factory area 876 | -6/Factory | Accompanied by 1 ally 877 | -6/Factory | Core integrity fell below 50% 877 | -6/Factory | Core integrity fell below 20% 878 | -6/Factory | Reached level 6 878 | -6/Factory | Upgraded with Utility slot (x1) 1091 | -6/Factory | Identified exit to Lower Caves 1099 | -6/Factory | Identified exit to Factory 1255 | -6/Factory | Fabricated X-62 Marksman (x2) 1340 | -6/Factory | Fabricated Adv. Terrain Scan Processor (x2) 1380 | -6/Factory | Destroyed by H-66 Slayer with Gauss Rifle Last Messages --------------- Time: 84 Matter: 168 Initiate build sequence. 01255_ Fabricator completes X-62 Marksman. 01256_ Connecting with Fabricator... >>Build Building Adv. Terrain Scan Processor... ETC: 84 01340_ Fabricator completes Adv. Terrain Scan Processor. 01340_ Dropped Cold Fusion Reactor. 01341_ Acquired Adv. Terrain Scan Processor. 01348_ Administrator 4a reveals location of hidden door. 01356_ Administrator 4a reveals location of Proton Bomb Trap. 01361_ Administrator 4a reveals location of Alarm Trap. 01361_ K-01 Serf cleans the Construction Platform. 01366_ Administrator 4a reveals location of Alarm Trap. 01371_ K-01 Serf cleans the Construction Platform. 01379_ K-01 Serf cleans the Subcomponent Replicator. 01380_ Slug penetrates K-01 Serf. 01380_ K-01 Serf destroyed. Map ----- +----------------------------------------------------+ | ??????????? ^ ""#? ???"???? ? ??? | | ?????????? F"## ?"?"?"? ?? ?? | | ?????????? < ""#? ???"?"? ??#? | | ??????????? #? "?"??? ??? ?? ^ | | ??????????? #???? ??? ? ????? | | ??????????#??############ #? ?? ?? ? ? ?? | | ????????? ??? ?? ###?#??# #########?#?##?????? | | ?????????? ? ??? ????#??# ?? ?????? | | ??????????????????####### ??? ? ??? | | ??????????? ?? ???? # """ """ """ ""??"""???? | | ??????????? ?????? """" # """ """ ""??????????"?? | | ??????"??????????? """" # """ """ """???????????? | | ???? ?????? ?????? """" # k "" "" ""???????????? | | ??????#??????????# """" # "" "" "" "????????? | | ???????????? ????# """" # ???????? | | ??????????#??????# """" + ???????? | | ??????????#???#?## """" # ???????? | | ?????????????????# # ??? ????? | | ?????????????????# = ! # ???????? | | ?????#???#??#?#??# # ?? ?????? | | ??????#?????#??#?# ! ! # ????????? | | ???????#????????## # ???????? | | ??????????#??????# ] # " " " " " " "?????????? | | ?????????????????######## " " " " " "???????????? | | ?????"?????#????????????# " " " " " ????????????? | | ????????????????? ??????#@ " " " " ??????????????? | | ?????????????? ? ???? ??# " " " "???????????????? | | ???????? ???????"???????# " " " "?????? ????????? | | ??????? ??????????????? # " " " "???"???????????? | | ????????????????????????# " " " ????????????????? | | ?????????????????????"??+ " " " "???"???????????? | | ????????????????????????# ????????????????? | | ????????????????????????# ? ??????????????? | | ???????????? ? ?????????# ##?????????#???????? | | ?????????????????????????!% #??? ??????#???????? | | ????????????????? ??????? ???????????????????? | | ??????????????? ????????? ???????????????????? | | ????????????????????????? ???????????????????? | | ????????????????????????? ???????????????????? | | ???????????????#???????#? h ???????????????????? | | ????????????????????????? ????????????????????? | | ?????????????????????????????????????????????????? | | ?????????????????????????????????????????????????? | | ?????????????????????????????????????????????????? | | ?????????????????????????????????????????????????? | | ?????????????????????????????????????????????????? | | ?????????????????????????????????????????????????? | | ???????????????????????????????????????=?????????? | | ?????????????????????????????????????????????????? | | ?????????????????????????????????????????????????? | +----------------------------------------------------+ Best States ------------- Heat Dissipation 25 Energy Generation 24 Energy Capacity 210 Matter Stores 300 Matter Capacity 300 Sight Range 16 Terrain Scan Range 20 Terrain Scan Density 210 Cloak Strength 3 Evasion (%) 64 Offensive Hacking 44 Defensive Hacking 15 Item Schematics ----------------- Imp. VTOL Module | -8/Materials | Scanalyzed Lgt. Nuclear Core | -8/Materials | Scanalyzed Adv. Hacking Suite | -7/Factory | Hacked Adv. Terrain Scan Processor | -7/Factory | Scanalyzed Imp. Cloaking Device | -7/Factory | Scanalyzed Robot Schematics ------------------ None Fabricated ------------ Adv. Hacking Suite | x1 | -7/Factory X-62 Marksman | x2 | -6/Factory | Preloaded Adv. Terrain Scan Processor | x2 | -6/Factory Alien Tech Used ----------------- None Achievements -------------- None Challenges ------------ None RPGLIKE | -11 -10 -9 -9 -8 -7 -7 -7 -6 --------- Run | Scr Mat Mat Min Mat Fac Was Fac Fac Levels Raised 5 | . . 1 . 1 1 1 . 1 XP Earned 11247 | 3000 230 1580 635 1682 1740 200 440 1740 XP Spent 10250 | . 3000 750 . . 1300 3800 . 1400 Upgrades 15 | . 5 2 . . 2 5 . 1 Power Slot 1 | . . . . . . 1 . . Propulsion Slot 2 | . . . . . 1 1 . . Utility Slot 4 | . . 1 . . 1 1 . 1 Inventory Capacity 1 | . . 1 . . . . . . Hack Attack % 6 | . 5 . . . . 1 . . Hack Defense % 1 | . . . . . . 1 . . Protomatter Created . | . . . . . . . . . Protomatter Decayed 98 | . . . . . . 98 . . Game ------ Seed FlakSwarmMediator Manual? 0 Play Time 00:36:46 Cumulative 87.2 hours Start 2019.12.21 @ 02:43:22 End 2019.12.21 @ 03:19:44 Sessions 1 Manual Loads 0 Difficulty Rogue Special Mode Winter2019/RPGLIKE Game No. 114 Rogue 114 Adventurer 0 Explorer 0 Win Type - Total 8 Types 7/0/0/1/0/0/0 Lore% 38 Gallery% 60 Achievement% 47 Wizard Run 0 Options --------- ASCII 0 Keyboard 0 Movement Numpad Keybinds 0 Fullscreen 2 Font 18/SmallcapsGlow Map View 76x50 Tactical HUD 1 Map Filters NONE Filters NONE Steam 1 RUN: 3d7756d4-7c4d-435d-bf61-cc62459ceffc